[Event "Early-Titled-Tuesday-Blitz-August-29-2023"]
[Site "Chess.com"]
[Date "2023.08.29"]
[Round "10"]
[White "AdvanceGuard4"]
[Black "YEIKO2017"]
[Result "0-1"]
[WhiteElo "2622"]
[BlackElo "2486"]
[TimeControl "180+1"]
[EndTime "9:54:36 PDT"]
[Termination "YEIKO2017 won by resignation"]

1. d4 {[%clk 0:02:57.8]} 1... Nf6 {[%clk 0:02:58.8]} 2. c4 {[%clk 0:02:56.1]}
2... e5 {[%clk 0:02:58.9]} 3. dxe5 {[%clk 0:02:53.1]} 3... Ng4 {[%clk
0:02:58.3]} 4. Bf4 {[%clk 0:02:50.3]} 4... Nc6 {[%clk 0:02:51.6]} 5. Nf3 {[%clk
0:02:49.7]} 5... Bb4+ {[%clk 0:02:50.7]} 6. Nbd2 {[%clk 0:02:48.3]} 6... Qe7
{[%clk 0:02:47.3]} 7. e3 {[%clk 0:02:47.4]} 7... Ngxe5 {[%clk 0:02:44.9]} 8.
Nxe5 {[%clk 0:02:45.6]} 8... Nxe5 {[%clk 0:02:45.8]} 9. Be2 {[%clk 0:02:45.9]}
9... O-O {[%clk 0:02:40.7]} 10. O-O {[%clk 0:02:45.3]} 10... d6 {[%clk
0:02:40.6]} 11. a3 {[%clk 0:02:43.2]} 11... Bc5 {[%clk 0:02:26.4]} 12. Ne4
{[%clk 0:02:24.7]} 12... Bb6 {[%clk 0:02:23]} 13. Nc3 {[%clk 0:02:24]} 13... c6
{[%clk 0:02:22]} 14. Qd2 {[%clk 0:02:14.2]} 14... Be6 {[%clk 0:02:17.8]} 15. b3
{[%clk 0:02:14.4]} 15... Rad8 {[%clk 0:02:12.3]} 16. Rfd1 {[%clk 0:02:10.2]}
16... Bc7 {[%clk 0:01:57.5]} 17. Qc2 {[%clk 0:02:04.3]} 17... Ng6 {[%clk
0:01:56.9]} 18. Bg3 {[%clk 0:02:02]} 18... f5 {[%clk 0:01:57.4]} 19. Bh5 {[%clk
0:01:54]} 19... Qg5 {[%clk 0:01:34.9]} 20. Bxg6 {[%clk 0:01:49]} 20... Qxg6
{[%clk 0:01:34.9]} 21. Nd5 {[%clk 0:01:00.9]} 21... Bxd5 {[%clk 0:01:08.3]} 22.
cxd5 {[%clk 0:01:01.8]} 22... c5 {[%clk 0:01:08.8]} 23. b4 {[%clk 0:00:56.3]}
23... Bb6 {[%clk 0:01:02.5]} 24. Qc4 {[%clk 0:00:35.4]} 24... cxb4 {[%clk
0:00:52.8]} 25. axb4 {[%clk 0:00:32.8]} 25... Rc8 {[%clk 0:00:52.8]} 26. Qf4
{[%clk 0:00:29]} 26... Rfd8 {[%clk 0:00:47]} 27. Rac1 {[%clk 0:00:26.7]} 27...
Rxc1 {[%clk 0:00:36.8]} 28. Rxc1 {[%clk 0:00:27.6]} 28... Qf7 {[%clk 0:00:34.5]}
29. h3 {[%clk 0:00:25.7]} 29... Qxd5 {[%clk 0:00:33.4]} 30. Qg5 {[%clk
0:00:21.9]} 30... h6 {[%clk 0:00:29.6]} 31. Qh5 {[%clk 0:00:15.9]} 31... Qf7
{[%clk 0:00:28.1]} 32. Qf3 {[%clk 0:00:14.1]} 32... d5 {[%clk 0:00:23.2]} 33.
Be5 {[%clk 0:00:14.2]} 33... d4 {[%clk 0:00:20.6]} 34. exd4 {[%clk 0:00:14.7]}
34... Bxd4 {[%clk 0:00:20.7]} 35. Rd1 {[%clk 0:00:15.2]} 35... Bb6 {[%clk
0:00:15.5]} 36. Rxd8+ {[%clk 0:00:10.8]} 36... Bxd8 {[%clk 0:00:16.4]} 37. b5
{[%clk 0:00:09.3]} 37... Bb6 {[%clk 0:00:16.2]} 38. Qd3 {[%clk 0:00:08.2]} 38...
Kh7 {[%clk 0:00:14.1]} 39. g4 {[%clk 0:00:05]} 39... Qg6 {[%clk 0:00:12.5]} 40.
Qxf5 {[%clk 0:00:04.5]} 40... Qxf5 {[%clk 0:00:10.3]} 41. gxf5 {[%clk
0:00:05.4]} 41... g5 {[%clk 0:00:08.7]} 42. fxg6+ {[%clk 0:00:04.8]} 42... Kxg6
{[%clk 0:00:09]} 43. Kf1 {[%clk 0:00:05.3]} 43... Kf5 {[%clk 0:00:08.7]} 44. Bg7
{[%clk 0:00:05.5]} 44... h5 {[%clk 0:00:09.1]} 45. Ke2 {[%clk 0:00:05.9]} 45...
Ke4 {[%clk 0:00:09.3]} 46. Bf8 {[%clk 0:00:03.5]} 46... Kd5 {[%clk 0:00:07.9]}
47. f4 {[%clk 0:00:02.9]} 47... Kc4 {[%clk 0:00:08.2]} 48. f5 {[%clk 0:00:03.3]}
48... Bd4 {[%clk 0:00:07.1]} 49. Be7 {[%clk 0:00:03.3]} 49... Kxb5 {[%clk
0:00:06.8]} 50. Kd3 {[%clk 0:00:04.2]} 50... Bh8 {[%clk 0:00:04.1]} 51. f6
{[%clk 0:00:04.4]} 51... Bxf6 {[%clk 0:00:02]} 52. Bxf6 {[%clk 0:00:05.3]} 52...
a5 {[%clk 0:00:02.4]} 53. Ke4 {[%clk 0:00:03]} 53... Kc4 {[%clk 0:00:02.2]} 54.
Kf5 {[%clk 0:00:02.5]} 54... b5 {[%clk 0:00:02.7]} 55. Kg5 {[%clk 0:00:02.9]}
55... b4 {[%clk 0:00:03.6]} 56. Kxh5 {[%clk 0:00:03.4]} 56... a4 {[%clk
0:00:02.7]} 57. Kg4 {[%clk 0:00:03.8]} 57... a3 {[%clk 0:00:03.1]} 58. h4 {[%clk
0:00:04.4]} 58... b3 {[%clk 0:00:04]} 59. h5 {[%clk 0:00:04.8]} 59... b2 {[%clk
0:00:04.9]} 60. h6 {[%clk 0:00:01.7]} 60... b1=Q {[%clk 0:00:05.4]} 61. Kg5
{[%clk 0:00:02]} 61... Qh7 {[%clk 0:00:05.2]} 62. Bg7 {[%clk 0:00:01.8]} 62...
a2 {[%clk 0:00:05.9]} 0-1

[Event "Early-Titled-Tuesday-Blitz-August-29-2023"]
[Site "Chess.com"]
[Date "2023.08.29"]
[Round "10"]
[White "Bilan_Danila"]
[Black "tylityli"]
[Result "1-0"]
[WhiteElo "2496"]
[BlackElo "2346"]
[TimeControl "180+1"]
[EndTime "9:54:38 PDT"]
[Termination "Bilan_Danila won on time"]

1. d4 {[%clk 0:03:00.9]} 1... Nf6 {[%clk 0:02:52.1]} 2. Nf3 {[%clk 0:03:01]}
2... d5 {[%clk 0:02:50.5]} 3. c4 {[%clk 0:03:00.9]} 3... dxc4 {[%clk 0:02:50.2]}
4. e3 {[%clk 0:03:01.1]} 4... a6 {[%clk 0:02:49.9]} 5. Bxc4 {[%clk 0:03:01.1]}
5... b5 {[%clk 0:02:49.4]} 6. Be2 {[%clk 0:03:01.6]} 6... Bb7 {[%clk 0:02:49.3]}
7. O-O {[%clk 0:03:00.6]} 7... e6 {[%clk 0:02:49.5]} 8. a3 {[%clk 0:02:55.5]}
8... c5 {[%clk 0:02:48.5]} 9. dxc5 {[%clk 0:02:55.6]} 9... Qxd1 {[%clk
0:02:46.8]} 10. Rxd1 {[%clk 0:02:52.8]} 10... Bxc5 {[%clk 0:02:47.7]} 11. b4
{[%clk 0:02:52.5]} 11... Be7 {[%clk 0:02:45.3]} 12. Bb2 {[%clk 0:02:51.8]} 12...
O-O {[%clk 0:02:44.8]} 13. Nbd2 {[%clk 0:02:51.3]} 13... Nbd7 {[%clk 0:02:37.6]}
14. Nb3 {[%clk 0:02:51.2]} 14... Rac8 {[%clk 0:02:36.9]} 15. Na5 {[%clk
0:02:46.3]} 15... Be4 {[%clk 0:02:32.4]} 16. Rac1 {[%clk 0:02:42.6]} 16... h6
{[%clk 0:02:29.5]} 17. Nd4 {[%clk 0:02:38.8]} 17... Rfe8 {[%clk 0:02:00.6]} 18.
Ndc6 {[%clk 0:02:11.9]} 18... Bf8 {[%clk 0:01:58.9]} 19. f3 {[%clk 0:02:02.9]}
19... Bxc6 {[%clk 0:01:50.9]} 20. Nxc6 {[%clk 0:02:03.8]} 20... Nb6 {[%clk
0:01:51.1]} 21. e4 {[%clk 0:01:55.8]} 21... Nc4 {[%clk 0:01:44]} 22. Bxc4 {[%clk
0:01:48.7]} 22... Rxc6 {[%clk 0:01:43.8]} 23. Bb3 {[%clk 0:01:37.1]} 23... Rxc1
{[%clk 0:01:25.9]} 24. Rxc1 {[%clk 0:01:35.8]} 24... Ra8 {[%clk 0:01:24.7]} 25.
Bd4 {[%clk 0:01:05.8]} 25... Ne8 {[%clk 0:00:55.8]} 26. Kf2 {[%clk 0:00:55.2]}
26... Nd6 {[%clk 0:00:40.6]} 27. Rc6 {[%clk 0:00:46.8]} 27... a5 {[%clk
0:00:37.3]} 28. Bc5 {[%clk 0:00:45.7]} 28... Nc4 {[%clk 0:00:26.1]} 29. Bxf8
{[%clk 0:00:43.3]} 29... Kxf8 {[%clk 0:00:24.6]} 30. Bxc4 {[%clk 0:00:41.6]}
30... bxc4 {[%clk 0:00:25.5]} 31. b5 {[%clk 0:00:31]} 31... Rd8 {[%clk
0:00:18.5]} 32. Rxc4 {[%clk 0:00:23.4]} 32... Rd2+ {[%clk 0:00:12]} 33. Kg3
{[%clk 0:00:18]} 33... Rb2 {[%clk 0:00:08]} 34. a4 {[%clk 0:00:16.3]} 34... Ke7
{[%clk 0:00:05.3]} 35. Rc7+ {[%clk 0:00:14]} 35... Kf6 {[%clk 0:00:05.2]} 36.
Ra7 {[%clk 0:00:14.2]} 36... h5 {[%clk 0:00:04.4]} 37. h4 {[%clk 0:00:13.7]}
37... g5 {[%clk 0:00:03.6]} 38. hxg5+ {[%clk 0:00:14]} 38... Kxg5 {[%clk
0:00:03.5]} 39. Rxa5 {[%clk 0:00:14.9]} 39... h4+ {[%clk 0:00:02.7]} 40. Kh3
{[%clk 0:00:15.4]} 40... e5 {[%clk 0:00:02]} 41. Ra8 {[%clk 0:00:10.9]} 41... f6
{[%clk 0:00:01.2]} 42. Rg8+ {[%clk 0:00:10.4]} 42... Kf4 {[%clk 0:00:01.6]} 43.
Kxh4 {[%clk 0:00:03.1]} 43... Rb1 {[%clk 0:00:01.5]} 44. Kh5 {[%clk 0:00:03.7]}
44... Rb4 {[%clk 0:00:01.5]} 45. Kg6 {[%clk 0:00:03.3]} 45... Rxa4 {[%clk
0:00:01.5]} 46. Kxf6 {[%clk 0:00:04]} 46... Rb4 {[%clk 0:00:02]} 47. Rb8 {[%clk
0:00:04.6]} 47... Rb2 {[%clk 0:00:01.8]} 48. g4 {[%clk 0:00:04]} 48... Kxf3
{[%clk 0:00:01.1]} 49. Kxe5 {[%clk 0:00:03.7]} 49... Kxg4 {[%clk 0:00:01.6]} 50.
Rg8+ {[%clk 0:00:03.5]} 50... Kf3 {[%clk 0:00:01.8]} 51. Rb8 {[%clk 0:00:03.5]}
51... Rb4 {[%clk 0:00:01.3]} 52. Kd6 {[%clk 0:00:03.6]} 52... Rxe4 {[%clk
0:00:01.3]} 53. Kc6 {[%clk 0:00:04.2]} 53... Rc4+ {[%clk 0:00:01.5]} 54. Kd5
{[%clk 0:00:04.2]} 54... Rb4 {[%clk 0:00:01.8]} 55. Kc5 {[%clk 0:00:04.8]} 55...
Rb3 {[%clk 0:00:01.7]} 56. Re8 {[%clk 0:00:05.4]} 56... Kf4 {[%clk 0:00:01.7]}
57. b6 {[%clk 0:00:05.6]} 57... Kf5 {[%clk 0:00:02.3]} 58. Kc6 {[%clk
0:00:05.9]} 58... Rc3+ {[%clk 0:00:02.3]} 59. Kb5 {[%clk 0:00:05.8]} 59... Rb3+
{[%clk 0:00:02.6]} 60. Ka6 {[%clk 0:00:06.4]} 60... Ra3+ {[%clk 0:00:03.1]} 61.
Kb7 {[%clk 0:00:07]} 61... Rb3 {[%clk 0:00:03.7]} 62. Kc7 {[%clk 0:00:07.2]}
62... Kf6 {[%clk 0:00:04]} 63. b7 {[%clk 0:00:07.2]} 63... Rc3+ {[%clk
0:00:04.4]} 64. Kd6 {[%clk 0:00:07]} 64... Rd3+ {[%clk 0:00:04.5]} 65. Kc5
{[%clk 0:00:07.4]} 65... Rc3+ {[%clk 0:00:03.6]} 66. Kb4 {[%clk 0:00:06.8]} 1-0

[Event "Early-Titled-Tuesday-Blitz-August-29-2023"]
[Site "Chess.com"]
[Date "2023.08.29"]
[Round "10"]
[White "Let_it_be_1"]
[Black "ljuks68"]
[Result "1/2-1/2"]
[WhiteElo "2621"]
[BlackElo "2467"]
[TimeControl "180+1"]
[EndTime "9:54:39 PDT"]
[Termination "Game drawn - insufficient material"]

1. e4 {[%clk 0:03:00.9]} 1... e6 {[%clk 0:02:59.8]} 2. d4 {[%clk 0:03:00.6]}
2... d5 {[%clk 0:03:00.3]} 3. Nd2 {[%clk 0:03:00.6]} 3... Nf6 {[%clk 0:03:00.2]}
4. e5 {[%clk 0:03:00.1]} 4... Nfd7 {[%clk 0:03:00.5]} 5. Bd3 {[%clk 0:03:00.4]}
5... c5 {[%clk 0:03:01.1]} 6. c3 {[%clk 0:03:00.7]} 6... Nc6 {[%clk 0:03:01.7]}
7. Ne2 {[%clk 0:03:01.1]} 7... cxd4 {[%clk 0:03:01.7]} 8. cxd4 {[%clk
0:03:01.2]} 8... f6 {[%clk 0:03:02.4]} 9. exf6 {[%clk 0:03:01.6]} 9... Qxf6
{[%clk 0:03:03]} 10. Nf3 {[%clk 0:03:01.3]} 10... h6 {[%clk 0:03:03.4]} 11. O-O
{[%clk 0:03:01]} 11... Bd6 {[%clk 0:03:04]} 12. Nc3 {[%clk 0:02:54.1]} 12... O-O
{[%clk 0:03:01.5]} 13. Be3 {[%clk 0:02:48.2]} 13... Rd8 {[%clk 0:03:01.2]} 14.
Rc1 {[%clk 0:02:41.5]} 14... Nf8 {[%clk 0:03:00.9]} 15. Bb1 {[%clk 0:02:38.3]}
15... Bd7 {[%clk 0:03:00.7]} 16. Nd2 {[%clk 0:02:01.4]} 16... Nxd4 {[%clk
0:02:57.3]} 17. Nde4 {[%clk 0:01:58.1]} 17... dxe4 {[%clk 0:02:28.9]} 18. Bxd4
{[%clk 0:01:44.9]} 18... Qe7 {[%clk 0:02:28.3]} 19. Nxe4 {[%clk 0:01:40.3]}
19... Bc6 {[%clk 0:02:27.1]} 20. Nxd6 {[%clk 0:01:30.3]} 20... Rxd6 {[%clk
0:02:27.3]} 21. Qg4 {[%clk 0:01:29.8]} 21... Rd5 {[%clk 0:02:15.6]} 22. Be3
{[%clk 0:01:24.2]} 22... Qf6 {[%clk 0:01:27.6]} 23. Be4 {[%clk 0:01:11.9]} 23...
Rd6 {[%clk 0:01:17.6]} 24. Bxc6 {[%clk 0:00:56.3]} 24... Rxc6 {[%clk 0:00:58.6]}
25. Rxc6 {[%clk 0:00:52.5]} 25... bxc6 {[%clk 0:00:59]} 26. Bd4 {[%clk
0:00:49.8]} 26... Qf5 {[%clk 0:00:56.2]} 27. Qe2 {[%clk 0:00:44.1]} 27... c5
{[%clk 0:00:51.9]} 28. Bc3 {[%clk 0:00:43]} 28... Rd8 {[%clk 0:00:48.9]} 29. g3
{[%clk 0:00:42.2]} 29... Rd3 {[%clk 0:00:40.2]} 30. Re1 {[%clk 0:00:37.5]} 30...
Qd5 {[%clk 0:00:37.9]} 31. Qe5 {[%clk 0:00:35.4]} 31... Qxe5 {[%clk 0:00:37.2]}
32. Rxe5 {[%clk 0:00:35.1]} 32... Rd5 {[%clk 0:00:34.4]} 33. Re4 {[%clk
0:00:34.7]} 33... Kf7 {[%clk 0:00:20.2]} 34. Ra4 {[%clk 0:00:33.7]} 34... Rd7
{[%clk 0:00:19.9]} 35. Ra6 {[%clk 0:00:33.6]} 35... Rc7 {[%clk 0:00:19.1]} 36.
b3 {[%clk 0:00:29.2]} 36... Nd7 {[%clk 0:00:18.1]} 37. Kf1 {[%clk 0:00:28.2]}
37... g6 {[%clk 0:00:14.3]} 38. Ke2 {[%clk 0:00:24.3]} 38... h5 {[%clk
0:00:14.4]} 39. h4 {[%clk 0:00:24]} 39... Nb6 {[%clk 0:00:12.7]} 40. Ba5 {[%clk
0:00:22]} 40... Rb7 {[%clk 0:00:11.3]} 41. Bxb6 {[%clk 0:00:20.7]} 41... axb6
{[%clk 0:00:11.7]} 42. Kd3 {[%clk 0:00:20.3]} 42... Rd7+ {[%clk 0:00:10]} 43.
Kc3 {[%clk 0:00:20.4]} 43... b5 {[%clk 0:00:09.5]} 44. Rc6 {[%clk 0:00:19.6]}
44... b4+ {[%clk 0:00:09.7]} 45. Kc2 {[%clk 0:00:18.7]} 45... Rd5 {[%clk
0:00:09.4]} 46. Rc8 {[%clk 0:00:15.7]} 46... Kf6 {[%clk 0:00:08.4]} 47. f3
{[%clk 0:00:14.3]} 47... e5 {[%clk 0:00:07.8]} 48. Rf8+ {[%clk 0:00:14.3]} 48...
Kg7 {[%clk 0:00:07.4]} 49. Rc8 {[%clk 0:00:13.6]} 49... Kf6 {[%clk 0:00:07.6]}
50. g4 {[%clk 0:00:13.1]} 50... hxg4 {[%clk 0:00:06.6]} 51. fxg4 {[%clk
0:00:13.5]} 51... e4 {[%clk 0:00:06.4]} 52. Rc6+ {[%clk 0:00:13.2]} 52... Ke5
{[%clk 0:00:04.7]} 53. Rxg6 {[%clk 0:00:11.7]} 53... Kf4 {[%clk 0:00:04.9]} 54.
Re6 {[%clk 0:00:11.3]} 54... e3 {[%clk 0:00:02.9]} 55. g5 {[%clk 0:00:11.4]}
55... Rd2+ {[%clk 0:00:02.3]} 56. Kc1 {[%clk 0:00:11.8]} 56... Rg2 {[%clk
0:00:01.8]} 57. g6 {[%clk 0:00:11.2]} 57... e2 {[%clk 0:00:01.2]} 58. Kd2 {[%clk
0:00:11.2]} 58... Kf3 {[%clk 0:00:02.1]} 59. Rf6+ {[%clk 0:00:11.3]} 59... Kg4
{[%clk 0:00:02]} 60. Ke1 {[%clk 0:00:11.3]} 60... Kxh4 {[%clk 0:00:02.2]} 61.
Re6 {[%clk 0:00:09.7]} 61... Kh5 {[%clk 0:00:02.1]} 62. Rxe2 {[%clk 0:00:09.5]}
62... Rxg6 {[%clk 0:00:01.9]} 63. Re5+ {[%clk 0:00:09.2]} 63... Rg5 {[%clk
0:00:02.8]} 64. Rxg5+ {[%clk 0:00:09.3]} 64... Kxg5 {[%clk 0:00:03.4]} 65. Ke2
{[%clk 0:00:10.2]} 65... Kf5 {[%clk 0:00:04]} 66. Kd3 {[%clk 0:00:11.1]} 66...
Ke5 {[%clk 0:00:04.7]} 67. Kc4 {[%clk 0:00:11.6]} 67... Kd6 {[%clk 0:00:05.4]}
68. Kb5 {[%clk 0:00:11.5]} 68... Kd5 {[%clk 0:00:05.8]} 69. Kb6 {[%clk
0:00:11.8]} 69... c4 {[%clk 0:00:06.1]} 70. bxc4+ {[%clk 0:00:11]} 70... Kxc4
{[%clk 0:00:06.5]} 71. Ka5 {[%clk 0:00:11.2]} 71... b3 {[%clk 0:00:06.9]} 72.
axb3+ {[%clk 0:00:11.1]} 72... Kxb3 {[%clk 0:00:07.3]} 1/2-1/2

[Event "Early-Titled-Tuesday-Blitz-August-29-2023"]
[Site "Chess.com"]
[Date "2023.08.29"]
[Round "10"]
[White "mapleaff"]
[Black "Rosh1610"]
[Result "1-0"]
[WhiteElo "2333"]
[BlackElo "2446"]
[TimeControl "180+1"]
[EndTime "9:54:43 PDT"]
[Termination "mapleaff won by checkmate"]

1. d4 {[%clk 0:03:00.5]} 1... Nf6 {[%clk 0:02:57.3]} 2. Bf4 {[%clk 0:03:00.1]}
2... d5 {[%clk 0:02:57]} 3. Nf3 {[%clk 0:02:59.7]} 3... e6 {[%clk 0:02:57.4]} 4.
e3 {[%clk 0:02:59.2]} 4... Bd6 {[%clk 0:02:57.5]} 5. Nbd2 {[%clk 0:02:53]} 5...
c5 {[%clk 0:02:57.8]} 6. c3 {[%clk 0:02:51.9]} 6... Qc7 {[%clk 0:02:57.7]} 7.
Bxd6 {[%clk 0:02:46.4]} 7... Qxd6 {[%clk 0:02:57.4]} 8. Ne5 {[%clk 0:02:47.3]}
8... Nbd7 {[%clk 0:02:54.1]} 9. f4 {[%clk 0:02:39.2]} 9... cxd4 {[%clk
0:02:53.3]} 10. exd4 {[%clk 0:02:35.1]} 10... Ne4 {[%clk 0:02:51.1]} 11. Bb5
{[%clk 0:01:58.2]} 11... O-O {[%clk 0:02:36.5]} 12. Bxd7 {[%clk 0:01:44.9]}
12... Bxd7 {[%clk 0:02:34.3]} 13. Nxe4 {[%clk 0:01:43.3]} 13... dxe4 {[%clk
0:02:31.9]} 14. O-O {[%clk 0:01:43]} 14... f6 {[%clk 0:02:26.3]} 15. Nc4 {[%clk
0:01:37.1]} 15... Qc7 {[%clk 0:02:20.7]} 16. Ne3 {[%clk 0:01:36.1]} 16... Bb5
{[%clk 0:02:20.5]} 17. c4 {[%clk 0:01:32]} 17... Ba6 {[%clk 0:02:20.7]} 18. Qb3
{[%clk 0:01:24]} 18... f5 {[%clk 0:02:17.3]} 19. g3 {[%clk 0:01:09.3]} 19... b6
{[%clk 0:02:16.1]} 20. Rfd1 {[%clk 0:01:07.3]} 20... Rfe8 {[%clk 0:02:08.2]} 21.
d5 {[%clk 0:01:05]} 21... exd5 {[%clk 0:02:06.5]} 22. cxd5 {[%clk 0:01:02.1]}
22... Qd6 {[%clk 0:02:05.3]} 23. Nxf5 {[%clk 0:00:57.2]} 23... Qc5+ {[%clk
0:02:01.2]} 24. Qe3 {[%clk 0:00:57.1]} 24... Qb4 {[%clk 0:01:54.3]} 25. Qd4
{[%clk 0:00:34.8]} 25... Qf8 {[%clk 0:01:52]} 26. Ne3 {[%clk 0:00:32.7]} 26...
Bd3 {[%clk 0:01:51.6]} 27. Rac1 {[%clk 0:00:30.6]} 27... Rac8 {[%clk 0:01:49.6]}
28. Rc3 {[%clk 0:00:19.7]} 28... Rxc3 {[%clk 0:01:45.4]} 29. Qxc3 {[%clk
0:00:20.6]} 29... Rc8 {[%clk 0:01:42.6]} 30. Qd4 {[%clk 0:00:18.6]} 30... g6
{[%clk 0:01:26.3]} 31. Ng4 {[%clk 0:00:13.3]} 31... Qc5 {[%clk 0:01:25.8]} 32.
Nf6+ {[%clk 0:00:06.6]} 32... Kf7 {[%clk 0:01:23]} 33. Qxc5 {[%clk 0:00:03.1]}
33... Rxc5 {[%clk 0:01:23.9]} 34. Nxh7 {[%clk 0:00:03.2]} 34... Rxd5 {[%clk
0:01:21.2]} 35. Ng5+ {[%clk 0:00:03.7]} 35... Kf6 {[%clk 0:01:19.8]} 36. Kf2
{[%clk 0:00:03.8]} 36... Rb5 {[%clk 0:01:11]} 37. Rd2 {[%clk 0:00:03.7]} 37...
Ra5 {[%clk 0:01:10.7]} 38. a3 {[%clk 0:00:03.3]} 38... Ra4 {[%clk 0:00:55.8]}
39. Ke3 {[%clk 0:00:03.4]} 39... a5 {[%clk 0:00:55.6]} 40. h3 {[%clk 0:00:02.7]}
40... b5 {[%clk 0:00:55]} 41. Rd1 {[%clk 0:00:02.9]} 41... Rc4 {[%clk
0:00:53.9]} 42. Rd2 {[%clk 0:00:03.3]} 42... a4 {[%clk 0:00:48.2]} 43. g4 {[%clk
0:00:03.6]} 43... Ke7 {[%clk 0:00:47.1]} 44. Rf2 {[%clk 0:00:03.1]} 44... Kf6
{[%clk 0:00:46.8]} 45. Rh2 {[%clk 0:00:03.2]} 45... Kg7 {[%clk 0:00:41.4]} 46.
h4 {[%clk 0:00:03.1]} 46... Kf6 {[%clk 0:00:41.5]} 47. h5 {[%clk 0:00:03.3]}
47... gxh5 {[%clk 0:00:42]} 48. gxh5 {[%clk 0:00:04.2]} 48... Rc1 {[%clk
0:00:38.7]} 49. Nxe4+ {[%clk 0:00:04.2]} 49... Bxe4 {[%clk 0:00:38.5]} 50. Kxe4
{[%clk 0:00:05.1]} 50... Re1+ {[%clk 0:00:38.4]} 51. Kd4 {[%clk 0:00:05.6]}
51... Rf1 {[%clk 0:00:38.6]} 52. Kc5 {[%clk 0:00:05.6]} 52... Rxf4 {[%clk
0:00:35.1]} 53. h6 {[%clk 0:00:05.3]} 53... Rc4+ {[%clk 0:00:30]} 54. Kxb5
{[%clk 0:00:05.4]} 54... Rc8 {[%clk 0:00:30.9]} 55. h7 {[%clk 0:00:05.7]} 55...
Rh8 {[%clk 0:00:31.8]} 56. Kxa4 {[%clk 0:00:06.2]} 56... Ke6 {[%clk 0:00:31.7]}
57. b4 {[%clk 0:00:06.4]} 57... Kd6 {[%clk 0:00:32.1]} 58. Kb3 {[%clk
0:00:06.5]} 58... Kc7 {[%clk 0:00:32.4]} 59. Kc4 {[%clk 0:00:06.6]} 59... Kb7
{[%clk 0:00:32.5]} 60. Kd5 {[%clk 0:00:07.2]} 60... Ka8 {[%clk 0:00:32.7]} 61.
Ke6 {[%clk 0:00:07.6]} 61... Ka7 {[%clk 0:00:32.6]} 62. Kf6 {[%clk 0:00:08.1]}
62... Ka6 {[%clk 0:00:32.4]} 63. Kg7 {[%clk 0:00:08.5]} 63... Rb8 {[%clk
0:00:32.3]} 64. h8=Q {[%clk 0:00:08.5]} 64... Rb7+ {[%clk 0:00:33.2]} 65. Kf6
{[%clk 0:00:08.5]} 65... Kb5 {[%clk 0:00:34.1]} 66. Qh5+ {[%clk 0:00:08]} 66...
Ka4 {[%clk 0:00:34]} 67. Qa5+ {[%clk 0:00:08.1]} 67... Kb3 {[%clk 0:00:34.9]}
68. Qd5+ {[%clk 0:00:08.2]} 68... Ka4 {[%clk 0:00:35.7]} 69. Qxb7 {[%clk
0:00:08.6]} 69... Kb3 {[%clk 0:00:36.6]} 70. Qd5+ {[%clk 0:00:08.6]} 70... Ka4
{[%clk 0:00:37.5]} 71. b5 {[%clk 0:00:08]} 71... Ka5 {[%clk 0:00:37.6]} 72. b6+
{[%clk 0:00:08]} 72... Ka6 {[%clk 0:00:37.6]} 73. b7 {[%clk 0:00:07.3]} 73...
Ka7 {[%clk 0:00:38.2]} 74. Rb2 {[%clk 0:00:05.9]} 74... Kb8 {[%clk 0:00:39.1]}
75. Qd8+ {[%clk 0:00:05.7]} 75... Ka7 {[%clk 0:00:39]} 76. b8=Q+ {[%clk
0:00:05.5]} 76... Ka6 {[%clk 0:00:39.9]} 77. Qdb6# {[%clk 0:00:05.6]} 1-0